fUST/lending_fUST_20240704
["ID","MTS","AMOUNT","RATE_DAILY","PERIOD"]
[331122198,1720091442659,-500.0,0.00013992,2]
[331122199,1720091442668,-500.0,0.00013992,2]
[331122200,1720091442678,-526.89884444,0.00013992,2]
[331122201,1720091442687,-500.0,0.00013992,2]
[331122202,1720091442697,-500.0,0.00013992,2]
[331122203,1720091442710,-501.30596621,0.00013992,2]
[331122204,1720091442720,-500.0,0.00013992,2]
[331122205,1720091442859,-509.69719731,0.00013992,2]
[331122206,1720091442870,-500.0,0.00013992,2]
[331122207,1720091442880,-501.81762391,0.00013996,2]
[331122208,1720091442889,-500.0,0.00013996,2]
[331122209,1720091442898,-1096.33,0.00013996,2]
[331122210,1720091442908,-500.0,0.00013996,2]
[331122211,1720091442918,-500.0,0.00013996,2]
[331122212,1720091442930,-500.0,0.00013996,2]
[331122213,1720091442939,-642.17,0.00013996,2]
[331122214,1720091442948,-500.0,0.00013996,2]
[331122215,1720091442961,-500.0,0.00013996,2]
[331122216,1720091442970,-500.0,0.00013996,2]
[331122217,1720091442979,-500.0,0.00013996,2]
[331122218,1720091442987,-607.32,0.00013996,2]
[331122219,1720091442997,-500.0,0.00013996,2]
[331122220,1720091443006,-500.0,0.00013996,2]
[331122221,1720091443015,-1744.7,0.00013996,2]
[331122222,1720091443025,-506.50097805,0.00013997,2]
[331122223,1720091443036,-507.02019711,0.00013997,2]
[331122224,1720091443046,-508.7000445,0.00013997,2]
[331122225,1720091443055,-500.0,0.00013997,2]
[331122226,1720091443064,-506.03210743,0.00013997,2]
[331122227,1720091443074,-500.0,0.00013997,2]
[331122228,1720091443083,-500.0,0.00013997,2]
[331122229,1720091443093,-500.0,0.00013997,2]
[331122230,1720091443102,-500.0,0.00013997,2]
[331122231,1720091443111,-500.0,0.00013997,2]
[331122232,1720091443120,-500.0,0.00013997,2]
[331122233,1720091443129,-500.0,0.00013997,2]
[331122234,1720091443138,-500.0,0.00013997,2]
[331122235,1720091443148,-753.64,0.00013997,2]
[331122236,1720091443158,-500.0,0.00013997,2]
[331122237,1720091443167,-587.67,0.00013997,2]
[331122238,1720091443177,-500.0,0.00013997,2]
[331122239,1720091443186,-500.0,0.00013997,2]
[331122240,1720091443195,-500.0,0.00013997,2]
[331122241,1720091443206,-500.0,0.00013997,2]
[331122242,1720091443215,-577.8491973,0.00013997,2]
[331122243,1720091443224,-410.67064769,0.00013997,2]
[331122244,1720091443232,-500.0,0.00013997,2]
[331122245,1720091443241,-500.0,0.00013997,2]
[331122246,1720091443250,-500.0,0.00013997,2]
[331122247,1720091443259,-500.0,0.00013997,2]
[331122248,1720091443268,-500.0,0.00013997,2]
[331122249,1720091443277,-500.0,0.00013997,2]
[331122250,1720091443287,-504.49121328,0.00013997,2]
[331122251,1720091443296,-151.0,0.00013999,2]
[331122252,1720091443305,-151.0,0.00013999,2]
[331122253,1720091443315,-159.244579,0.00013999,2]
[331122257,1720091443324,-151.0,0.00013999,2]
[331122261,1720091443333,-26546.3539314,0.00013999,2]
[331122264,1720091443352,-1744.7,0.00014006,2]
[331122266,1720091443364,-151.0,0.00014007,2]
[331122268,1720091443375,-151.0,0.00014007,2]
[331122270,1720091443388,-151.0,0.00014007,2]
[331122271,1720091443398,-151.0,0.00014007,2]
[331122272,1720091443407,-151.0,0.00014007,2]
[331122273,1720091443419,-688.124017,0.00014007,2]
[331122274,1720091443428,-151.0,0.00014007,2]
[331122275,1720091443438,-688.124017,0.00014007,2]
[331122276,1720091443448,-151.0,0.00014007,2]
[331122277,1720091443461,-500.0,0.00014007,2]
[331122278,1720091443470,-500.0,0.00014007,2]
[331122279,1720091443480,-174.468626,0.00014009,2]
[331122280,1720091443490,-174.468626,0.00014009,2]
[331122281,1720091443500,-162.352123,0.00014009,2]
[331122282,1720091443510,-151.84498,0.00014009,2]
[331122283,1720091443519,-151.0,0.00014009,2]
[331122284,1720091443529,-151.0,0.00014009,2]
[331122285,1720091443539,-2043.62277,0.00014009,2]
[331122286,1720091443549,-151.0,0.00014009,2]
[331122287,1720091443559,-2043.62277,0.00014009,2]
[331122288,1720091443569,-151.0,0.00014009,2]
[331122289,1720091443579,-151.0,0.00014009,2]
[331122290,1720091443588,-151.0,0.00014009,2]
[331122291,1720091443598,-1476.90581482,0.00014017,2]
[331122292,1720091443608,-1744.7,0.00014018,2]
[331122293,1720091443617,-500.0,0.00014019,2]
[331122294,1720091443627,-506.17075588,0.00014019,2]
[331122296,1720091443638,-6009.74,0.00014019,2]
[331122298,1720091443648,-500.0,0.00014019,2]
[331122300,1720091443660,-1146.3,0.00014019,2]
[331122302,1720091443670,-500.0,0.00014019,2]
[331122304,1720091443680,-500.0,0.00014019,2]
[331122305,1720091443690,-500.0,0.00014019,2]
[331122307,1720091443700,-834.66,0.00014019,2]
[331122309,1720091443713,-500.0,0.00014019,2]
[331122311,1720091443723,-500.0,0.00014019,2]
[331122312,1720091443732,-1020.2,0.00014019,2]
[331122313,1720091443742,-8005.7,0.00014019,2]
[331122314,1720091443753,-3849.43,0.00014019,2]
[331122315,1720091443764,-12206.78,0.00014019,2]
[331122316,1720091443773,-667.11,0.00014019,2]
[331122317,1720091443782,-500.0,0.00014019,2]
[331122318,1720091443791,-1476.90581482,0.00014083,2]
[331122319,1720091443801,-151.0,0.00014139,2]
[331122320,1720091443811,-151.0,0.00014139,2]
[331122321,1720091443820,-151.0,0.00014139,2]
[331122322,1720091443830,-26546.3539314,0.00014139,2]
[331122323,1720091443839,-1476.90581482,0.00014149,2]
[331122324,1720091443848,-151.0,0.00014149,2]
[331122325,1720091443857,-246.043137,0.00014149,2]
[331122326,1720091443867,-688.124017,0.00014149,2]
[331122327,1720091443876,-151.0,0.00014149,2]
[331122328,1720091443886,-688.124017,0.00014149,2]
[331122329,1720091443895,-2000.0,0.00014165,2]
[331122330,1720091443905,-26546.3539314,0.00014248,2]
[331122331,1720091443914,-9100.89559399,0.00014249,2]
[331122335,1720091444168,-500.0,0.00013984,2]
[331122336,1720091444178,-499.9933705,0.00013985,2]
[331122337,1720091444189,-0.0066295,0.00013985,2]
[331122338,1720091444198,-2181.79475984,0.00014249,2]
[331122339,1720091444211,-459.088,0.00014249,2]
[331122341,1720091444454,-252.14181647,0.00013974,2]
[331122342,1720091444464,-500.0,0.00013985,2]
[331122343,1720091444474,-14804.57557757,0.00014249,2]
[331122344,1720091444483,-174.468626,0.00014249,2]
[331122345,1720091444492,-151.0,0.00014249,2]
[331122346,1720091444502,-151.0,0.00014249,2]
[331122347,1720091444511,-301.20743,0.00014249,2]
[331122348,1720091444520,-151.0,0.00014249,2]
[331122349,1720091444530,-2043.62277,0.00014249,2]
[331122350,1720091444539,-151.0,0.00014249,2]
[331122351,1720091444549,-2043.62277,0.00014249,2]
[331122352,1720091444559,-157.139694,0.00014249,2]
[331122353,1720091444568,-151.0,0.00014249,2]
[331122354,1720091444578,-200.779055,0.00014249,2]
[331122355,1720091444588,-500.0,0.00014249,2]
[331122356,1720091444597,-1744.7,0.00014249,2]
[331122357,1720091444607,-151.0,0.0001425,2]
[331122358,1720091444617,-151.0,0.0001425,2]
[331122359,1720091444626,-151.0,0.0001425,2]
[331122360,1720091444636,-26546.3539314,0.0001425,2]
[331122361,1720091444646,-158.355445,0.0001425,2]
[331122362,1720091444657,-151.0,0.0001425,2]
[331122363,1720091444667,-506.27329443,0.00014255,2]
[331122364,1720091444677,-672.77,0.00014255,2]
[331122365,1720091444687,-2856.1,0.00014255,2]
[331122366,1720091444696,-500.0,0.00014255,2]
[331122367,1720091444707,-15074.12,0.00014255,2]
[331122368,1720091444716,-1910.31,0.00014255,2]
[331122369,1720091444726,-1744.7,0.00014255,2]
[331122371,1720091444735,-174.468626,0.00014256,2]
[331122373,1720091444745,-151.0,0.00014256,2]
[331122375,1720091444754,-151.0,0.00014256,2]
[331122376,1720091444764,-2043.62277,0.00014256,2]
[331122377,1720091444773,-151.0,0.00014256,2]
[331122378,1720091444783,-2043.62277,0.00014256,2]
[331122379,1720091444793,-268.480754,0.00014256,2]
[331122380,1720091444803,-151.0,0.00014256,2]
[331122381,1720091444813,-688.124017,0.00014256,2]
[331122382,1720091444822,-688.124017,0.00014256,2]
[331122383,1720091444831,-2916.56,0.00014258,2]
[331122384,1720091444841,-948.13,0.00014258,2]
[331122385,1720091444850,-500.0,0.00014258,2]
[331122386,1720091444860,-500.0,0.00014258,2]
[331122387,1720091444869,-2150.59,0.00014258,2]
[331122388,1720091444878,-424.31873628,0.00014258,2]
[331122389,1720091444891,-1280.06456494,0.00014258,2]
[331122390,1720091445176,-500.0,0.00013974,2]
[331122391,1720091445186,-455.88021939,0.00013974,2]
[331122392,1720091445196,-649.01655238,0.00014258,2]
[331122402,1720091447084,-2673.51,0.00013981,2]
[331122403,1720091447093,-184.98461223,0.00013986,2]
[331122404,1720091447103,-639.2601464,0.00014258,2]
[331122405,1720091447112,-1549.36,0.00014258,2]
[331122406,1720091447121,-500.0,0.00014258,2]
[331122407,1720091447130,-500.0,0.00014258,2]
[331122408,1720091447140,-1274.59,0.00014258,2]
[331122409,1720091447149,-500.0,0.00014258,2]
[331122410,1720091447159,-5211.25,0.00014258,2]
[331122411,1720091447168,-500.0,0.00014258,2]
[331122412,1720091447177,-500.0,0.00014258,2]
[331122413,1720091447186,-500.0,0.00014258,2]
[331122414,1720091447195,-500.0,0.00014259,2]
[331122415,1720091447205,-1231.46,0.00014259,2]
[331122416,1720091447218,-500.0,0.00014259,2]
[331122417,1720091447227,-500.0,0.00014259,2]
[331122418,1720091447237,-500.0,0.00014259,2]
[331122419,1720091447247,-500.0,0.00014259,2]
[331122420,1720091447256,-500.0,0.00014259,2]
[331122421,1720091447265,-500.0,0.00014259,2]
[331122422,1720091447274,-500.0,0.00014259,2]
[331122423,1720091447283,-294.27730779,0.00014259,2]
[331122436,1720092274404,177.90902834,9.999e-05,4]
[331122447,1720092498461,-300.0,0.00013699,2]
[331122448,1720092498490,-500.0,0.000137,2]
[331122449,1720092498521,-52.8159078,0.000137,2]
[331122450,1720092498575,-447.1840922,0.000137,2]
[331122451,1720092498604,-22.87784817,0.000137,2]
[331122482,1720092632901,-300.0,0.00013699,2]
[331122484,1720092632911,-477.12215183,0.000137,2]
[331122485,1720092632921,-500.0,0.000137,2]
[331122487,1720092632930,-500.0,0.000137,2]
[331122489,1720092632939,-278.90892367,0.000137,2]
[331122531,1720092639042,-221.09107633,0.000137,2]
[331122532,1720092639053,-500.0,0.000137,2]
[331122533,1720092639063,-500.0,0.000137,2]
[331122535,1720092639074,-500.0,0.000137,2]
[331122536,1720092639084,-500.0,0.000137,2]
[331122537,1720092639095,-500.0,0.000137,2]
[331122538,1720092639105,-500.0,0.000137,2]
[331122539,1720092639116,-500.0,0.000137,2]
[331122540,1720092639126,-383.24379561,0.000137,2]
[331122541,1720092639142,-116.75620439,0.000137,2]
[331122542,1720092639152,-500.0,0.000137,2]
[331122543,1720092639163,-279.48761463,0.000137,2]
[331122544,1720092639174,-500.0,0.00013883,2]
[331122545,1720092639184,-1653.75618098,0.00013892,2]
[331122546,1720092639196,-1155.82221337,0.00013892,2]
[331122547,1720092639207,-25151.9929613,0.00013964,2]
[331122548,1720092639217,-672.39,0.00013964,2]
[331122549,1720092639227,-2804.16,0.00013964,2]
[331122550,1720092639238,-500.0,0.00013964,2]
[331122551,1720092639248,-25151.9929613,0.00013965,2]
[331122552,1720092639258,-25151.9929613,0.00013966,2]
[331122553,1720092639268,-25151.9929613,0.0001397,2]
[331122554,1720092639280,-25151.9929613,0.00013971,2]
[331122555,1720092639291,-12916.55125473,0.00013974,2]
[331122556,1720092639300,-1171.85,0.00013974,2]
[331122557,1720092639310,-500.0,0.00013974,2]
[331122559,1720092639320,-525.52,0.00013974,2]
[331122560,1720092639330,-500.0,0.00013974,2]
[331122561,1720092639340,-1675.18,0.00013974,2]
[331122562,1720092639350,-500.0,0.00013974,2]
[331122563,1720092639360,-500.0,0.00013974,2]
[331122564,1720092639370,-500.0,0.00013974,2]
[331122565,1720092639380,-500.0,0.00013974,2]
[331122566,1720092639391,-1057.77,0.00013974,2]
[331122567,1720092639400,-1418.75,0.00013974,2]
[331122568,1720092639411,-14674.54,0.00013974,2]
[331122569,1720092639421,-1811.85,0.00013974,2]
[331122570,1720092639431,-244.02742582,0.00013974,2]
[331122571,1720092639442,-500.0,0.00013974,2]
[331122572,1720092639453,-500.0,0.00013974,2]
[331122573,1720092639463,-500.0,0.00013974,2]
[331122574,1720092639474,-2672.55,0.00013974,2]
[331122575,1720092639484,-500.0,0.00013974,2]
[331122576,1720092639494,-500.0,0.00013974,2]
[331122577,1720092639505,-981.1,0.00013974,2]
[331122578,1720092639515,-500.0,0.00013974,2]
[331122579,1720092639527,-500.0,0.00013974,2]
[331122580,1720092639537,-500.0,0.00013974,2]
[331122581,1720092639546,-1269.74,0.00013974,2]
[331122582,1720092639556,-895.17,0.00013974,2]
[331122583,1720092639566,-500.0,0.00013974,2]
[331122584,1720092639576,-500.0,0.00013974,2]
[331122585,1720092639586,-1167.92,0.00013974,2]
[331122586,1720092639608,-500.0,0.00013974,2]
[331122587,1720092639620,-500.0,0.00013974,2]
[331122588,1720092639631,-5224.15,0.00013974,2]
[331122589,1720092639642,-500.0,0.00013974,2]
[331122590,1720092639653,-819.54,0.00013974,2]
[331122591,1720092639663,-500.0,0.00013974,2]
[331122592,1720092639674,-500.0,0.00013974,2]
[331122593,1720092639685,-816.72,0.00013974,2]
[331122594,1720092639696,-749.59,0.00013974,2]
[331122595,1720092639707,-2050.03,0.00013974,2]
[331122596,1720092639718,-500.0,0.00013974,2]
[331122597,1720092639728,-500.0,0.00013974,2]
[331122598,1720092639739,-500.0,0.00013974,2]
[331122599,1720092639753,-500.0,0.00013974,2]
[331122600,1720092639764,-2844.68,0.00013974,2]
[331122601,1720092639776,-502.54265345,0.00013974,2]
[331122602,1720092639787,-616.26,0.00013974,2]
[331122603,1720092639799,-1473.14,0.00013974,2]
[331122604,1720092639810,-500.0,0.00013974,2]
[331122605,1720092639822,-500.0,0.00013974,2]
[331122606,1720092639833,-500.0,0.00013974,2]
[331122607,1720092639844,-958.44,0.00013974,2]
[331122608,1720092639855,-500.0,0.00013974,2]
[331122609,1720092639866,-500.0,0.00013974,2]
[331122610,1720092639877,-1212.02,0.00013974,2]
[331122611,1720092639887,-9817.25,0.00013974,2]
[331122612,1720092639898,-500.0,0.00013974,2]
[331122613,1720092639909,-500.0,0.00013974,2]
[331122614,1720092639920,-500.0,0.00013974,2]
[331122615,1720092639931,-500.0,0.00013974,2]
[331122616,1720092639941,-4975.7,0.00013974,2]
[331122617,1720092639951,-500.0,0.00013974,2]
[331122618,1720092639962,-263.36816196,0.00013974,2]
[331122619,1720092639972,-520.31,0.00013974,2]
[331122620,1720092639983,-500.0,0.00013974,2]
[331122621,1720092639994,-1041.39,0.00013974,2]
[331122622,1720092640012,-500.0,0.00013974,2]
[331122623,1720092640022,-500.0,0.00013974,2]
[331122624,1720092640033,-500.0,0.00013974,2]
[331122625,1720092640043,-1141.49,0.00013974,2]
[331122626,1720092640057,-500.0,0.00013974,2]
[331122627,1720092640068,-500.0,0.00013974,2]
[331122628,1720092640078,-500.0,0.00013974,2]
[331122629,1720092640089,-25151.9929613,0.00013975,2]
[331122630,1720092640100,-501.87428358,0.00013975,2]
[331122631,1720092640110,-500.0,0.00013975,2]
[331122632,1720092640122,-500.0,0.00013975,2]
[331122633,1720092640136,-500.0,0.00013975,2]
[331122634,1720092640147,-500.0,0.00013975,2]
[331122635,1720092640158,-500.0,0.00013975,2]
[331122636,1720092640169,-500.0,0.00013975,2]
[331122637,1720092640180,-500.0,0.00013975,2]
[331122638,1720092640191,-510.24864304,0.00013975,2]
[331122639,1720092640202,-500.0,0.00013975,2]
[331122640,1720092640212,-500.0,0.00013975,2]
[331122641,1720092640222,-304.44703318,0.00013975,2]
[331122642,1720092640233,-500.0,0.00013975,2]
[331122643,1720092640243,-500.0,0.00013975,2]
[331122644,1720092640253,-195.44507413,0.00013975,2]
[331122645,1720092640263,-500.0,0.00013975,2]
[331122646,1720092640274,-500.0,0.00013975,2]
[331122647,1720092640284,-500.0,0.00013975,2]
[331122648,1720092640294,-500.0,0.00013975,2]
[331122649,1720092640304,-500.0,0.00013975,2]
[331122650,1720092640315,-500.0,0.00013975,2]
[331122651,1720092640325,-500.0,0.00013975,2]
[331122652,1720092640335,-500.0,0.0001398,2]
[331122653,1720092640346,-500.0,0.0001398,2]
[331122654,1720092640357,-500.0,0.0001398,2]
[331122655,1720092640367,-500.0,0.0001398,2]
[331122656,1720092640377,-500.0,0.0001398,2]
[331122657,1720092640387,-500.0,0.0001398,2]
[331122658,1720092640397,-500.0,0.0001398,2]
[331122659,1720092640407,-500.0,0.0001398,2]
[331122660,1720092640417,-500.0,0.0001398,2]
[331122661,1720092640427,-500.0,0.0001398,2]
[331122662,1720092640440,-500.0,0.0001398,2]
[331122663,1720092640451,-329.61332008,0.0001398,2]
[331122664,1720092640460,-500.0,0.0001398,2]
[331122665,1720092640470,-500.0,0.0001398,2]
[331122666,1720092640480,-500.80688013,0.0001398,2]
[331122667,1720092640491,-504.25187794,0.0001398,2]
[331122668,1720092640501,-500.0,0.0001398,2]
[331122669,1720092640512,-500.0,0.0001398,2]
[331122670,1720092640522,-500.0,0.0001398,2]
[331122671,1720092640532,-815.21,0.0001398,2]
[331122672,1720092640543,-509.26101303,0.0001398,2]
[331122673,1720092640553,-500.0,0.0001398,2]
[331122674,1720092640563,-500.0,0.0001398,2]
[331122675,1720092640574,-500.0,0.0001398,2]
[331122676,1720092640584,-500.0,0.0001398,2]
[331122677,1720092640595,-500.0,0.0001398,2]
[331122678,1720092640605,-712.47,0.0001398,2]
[331122679,1720092640615,-500.0,0.0001398,2]
[331122680,1720092640626,-500.0,0.0001398,2]
[331122681,1720092640636,-500.0,0.0001398,2]
[331122682,1720092640646,-500.0,0.0001398,2]
[331122683,1720092640656,-500.0,0.0001398,2]
[331122684,1720092640666,-500.0,0.0001398,2]
[331122685,1720092640676,-500.0,0.0001398,2]
[331122686,1720092640686,-500.0,0.0001398,2]
[331122687,1720092640696,-500.0,0.0001398,2]
[331122688,1720092640707,-258.5109013,0.0001398,2]
[331122689,1720092640717,-500.0,0.0001398,2]
[331122690,1720092640728,-500.0,0.0001398,2]
[331122691,1720092640738,-500.0,0.0001398,2]
[331122692,1720092640748,-500.0,0.0001398,2]
[331122693,1720092640761,-500.0,0.0001398,2]
[331122694,1720092640771,-500.0,0.0001398,2]
[331122695,1720092640783,-500.0,0.0001398,2]
[331122696,1720092640793,-500.0,0.0001398,2]
[331122697,1720092640805,-500.0,0.0001398,2]
[331122698,1720092640816,-500.0,0.0001398,2]
[331122699,1720092640826,-505.48944372,0.0001398,2]
[331122700,1720092640839,-500.0,0.0001398,2]
[331122701,1720092640850,-500.0,0.0001398,2]
[331122702,1720092640860,-500.0,0.0001398,2]
[331122703,1720092640870,-500.0,0.0001398,2]
[331122704,1720092640881,-503.92534999,0.0001398,2]
[331122705,1720092640890,-503.51499383,0.0001398,2]
[331122706,1720092640899,-500.0,0.0001398,2]
[331122707,1720092640909,-500.0,0.0001398,2]
[331122708,1720092640919,-500.0,0.0001398,2]
[331122709,1720092640930,-500.0,0.0001398,2]
[331122710,1720092640940,-500.0,0.0001398,2]
[331122711,1720092640950,-500.0,0.0001398,2]
[331122712,1720092640960,-500.0,0.0001398,2]
[331122713,1720092640970,-500.0,0.0001398,2]
[331122714,1720092640979,-500.0,0.0001398,2]
[331122715,1720092640989,-597.83603967,0.0001398,2]
[331122716,1720092641000,-500.0,0.0001398,2]
[331122717,1720092641010,-500.0,0.0001398,2]
[331122718,1720092641020,-500.0,0.0001398,2]
[331122719,1720092641031,-502.93648634,0.0001398,2]
[331122720,1720092641041,-500.0,0.0001398,2]
[331122721,1720092641050,-500.0,0.0001398,2]
[331122722,1720092641060,-500.0,0.0001398,2]
[331122723,1720092641070,-500.0,0.0001398,2]
[331122724,1720092641080,-500.0,0.0001398,2]
[331122725,1720092641089,-500.0,0.0001398,2]
[331122727,1720092641099,-500.0,0.0001398,2]
[331122728,1720092641108,-500.0,0.0001398,2]
[331122729,1720092641118,-500.0,0.0001398,2]
[331122730,1720092641129,-500.0,0.0001398,2]
[331122731,1720092641139,-500.0,0.0001398,2]
[331122732,1720092641150,-501.74054938,0.0001398,2]
[331122733,1720092641161,-500.0,0.0001398,2]
[331122734,1720092641171,-501.72654803,0.0001398,2]
[331122735,1720092641181,-502.83223407,0.0001398,2]
[331122736,1720092641192,-500.0,0.0001398,2]
[331122737,1720092641203,-500.0,0.0001398,2]
[331122738,1720092641212,-503.94876905,0.0001398,2]
[331122739,1720092641224,-500.0,0.0001398,2]
[331122740,1720092641234,-500.0,0.0001398,2]
[331122741,1720092641243,-500.0,0.0001398,2]
[331122742,1720092641253,-319.83636117,0.0001398,2]
[331122743,1720092641263,-500.0,0.0001398,2]
[331122744,1720092641272,-500.0,0.0001398,2]
[331122745,1720092641285,-500.0,0.0001398,2]
[331122746,1720092641295,-502.05741685,0.0001398,2]
[331122747,1720092641306,-512.11044345,0.0001398,2]
[331122748,1720092641316,-500.0,0.0001398,2]
[331122749,1720092641326,-507.19125926,0.0001398,2]
[331122750,1720092641336,-269.25993227,0.0001398,2]
[331122751,1720092641346,-500.0,0.0001398,2]
[331122752,1720092641356,-500.0,0.0001398,2]
[331122753,1720092641366,-500.0,0.0001398,2]
[331122754,1720092641376,-500.0,0.0001398,2]
[331122755,1720092641386,-500.0,0.0001398,2]
[331122756,1720092641396,-500.0,0.0001398,2]
[331122757,1720092641406,-500.0,0.0001398,2]
[331122758,1720092641416,-500.0,0.0001398,2]
[331122759,1720092641426,-500.0,0.0001398,2]
[331122760,1720092641436,-595.69,0.0001398,2]
[331122761,1720092641446,-500.0,0.0001398,2]
[331122762,1720092641455,-500.0,0.0001398,2]
[331122763,1720092641465,-500.0,0.0001398,2]
[331122764,1720092641475,-500.0,0.0001398,2]
[331122765,1720092641485,-500.0,0.0001398,2]
[331122766,1720092641495,-500.0,0.0001398,2]
[331122767,1720092641507,-500.0,0.0001398,2]
[331122768,1720092641517,-500.0,0.0001398,2]
[331122769,1720092641528,-500.0,0.0001398,2]
[331122770,1720092641538,-500.0,0.0001398,2]
[331122771,1720092641548,-500.0,0.0001398,2]
[331122772,1720092641557,-500.0,0.0001398,2]
[331122773,1720092641567,-500.0,0.0001398,2]
[331122774,1720092641577,-500.0,0.0001398,2]
[331122775,1720092641586,-500.0,0.0001398,2]
[331122776,1720092641595,-507.73435802,0.0001398,2]
[331122777,1720092641605,-500.0,0.0001398,2]
[331122778,1720092641615,-500.0,0.0001398,2]
[331122779,1720092641624,-500.0,0.0001398,2]
[331122780,1720092641634,-509.64652439,0.0001398,2]
[331122781,1720092641644,-518.52413287,0.0001398,2]
[331122782,1720092641781,-500.0,0.0001398,2]
[331122783,1720092641792,-500.0,0.0001398,2]
[331122784,1720092641802,-506.76700847,0.0001398,2]
[331122785,1720092641812,-500.0,0.0001398,2]
[331122786,1720092641823,-500.0,0.0001398,2]
[331122787,1720092641832,-500.0,0.0001398,2]
[331122788,1720092641842,-500.0,0.0001398,2]
[331122789,1720092641852,-507.52335952,0.0001398,2]
[331122790,1720092641862,-500.0,0.0001398,2]
[331122791,1720092641872,-500.0,0.0001398,2]
[331122792,1720092641882,-501.98538086,0.0001398,2]
[331122793,1720092641892,-500.0,0.0001398,2]
[331122794,1720092641901,-500.0,0.0001398,2]
[331122795,1720092641911,-516.25482664,0.0001398,2]
[331122796,1720092641921,-500.0,0.0001398,2]
[331122797,1720092641931,-500.0,0.0001398,2]
[331122798,1720092641941,-500.0,0.0001398,2]
[331122799,1720092641951,-500.0,0.0001398,2]
[331122800,1720092641960,-1000.0,0.0001398,2]
[331122801,1720092641970,-502.7887817,0.0001398,2]
[331122802,1720092641979,-500.0,0.0001398,2]
[331122803,1720092641989,-500.0,0.0001398,2]
[331122804,1720092641999,-500.0,0.0001398,2]
[331122805,1720092642008,-500.0,0.0001398,2]
[331122806,1720092642017,-503.7022216,0.0001398,2]
[331122807,1720092642028,-468.58421245,0.0001398,2]
[331122808,1720092642037,-500.0,0.0001398,2]
[331122809,1720092642047,-500.0,0.0001398,2]
[331122810,1720092642056,-500.0,0.0001398,2]
[331122811,1720092642066,-500.0,0.0001398,2]
[331122812,1720092642075,-500.0,0.0001398,2]
[331122813,1720092642085,-500.0,0.00013981,2]
[331122814,1720092642095,-1163.14,0.00013981,2]
[331122815,1720092642105,-500.0,0.00013981,2]
[331122816,1720092642115,-500.0,0.00013981,2]
[331122817,1720092642125,-4938.52,0.00013981,2]
[331122818,1720092642136,-502.57959473,0.00013981,2]
[331122819,1720092642145,-1050.65,0.00013981,2]
[331122820,1720092642154,-500.0,0.00013981,2]
[331122821,1720092642164,-500.0,0.00013981,2]
[331122822,1720092642173,-500.0,0.00013981,2]
[331122823,1720092642183,-615.42,0.00013981,2]
[331122824,1720092642194,-500.0,0.00013981,2]
[331122825,1720092642204,-500.0,0.00013981,2]
[331122826,1720092642214,-500.0,0.00013981,2]
[331122827,1720092642224,-602.85,0.00013981,2]
[331122828,1720092642234,-500.0,0.00013981,2]
[331122829,1720092642244,-500.0,0.00013981,2]
[331122830,1720092642254,-500.0,0.00013981,2]
[331122831,1720092642263,-25151.9929613,0.00013982,2]